[Event "Early-Titled-Tuesday-Blitz-September-26-2023"]
[Site "Chess.com"]
[Date "2023.09.26"]
[Round "5"]
[White "stasOR4ik"]
[Black "karinachess1"]
[Result "0-1"]
[WhiteElo "2441"]
[BlackElo "2610"]
[TimeControl "180+1"]
[EndTime "8:59:17 PDT"]
[Termination "karinachess1 won by resignation"]

1. e4 {[%clk 0:02:40.1]} 1... e5 {[%clk 0:02:59.6]} 2. Nf3 {[%clk 0:02:39.5]}
2... Nc6 {[%clk 0:02:59.8]} 3. Bb5 {[%clk 0:02:39.8]} 3... Nf6 {[%clk
0:02:59.3]} 4. O-O {[%clk 0:02:37.5]} 4... Nxe4 {[%clk 0:02:59.4]} 5. Re1 {[%clk
0:02:37.5]} 5... Nd6 {[%clk 0:02:57.5]} 6. Bxc6 {[%clk 0:02:36.3]} 6... dxc6
{[%clk 0:02:49.4]} 7. Nxe5 {[%clk 0:02:33.6]} 7... Be7 {[%clk 0:02:49.6]} 8. d4
{[%clk 0:02:32]} 8... O-O {[%clk 0:02:49.6]} 9. Nd2 {[%clk 0:02:28.7]} 9... Nf5
{[%clk 0:02:42.3]} 10. Ndf3 {[%clk 0:02:26.9]} 10... Be6 {[%clk 0:02:37.7]} 11.
c3 {[%clk 0:02:23.8]} 11... c5 {[%clk 0:02:33.5]} 12. h3 {[%clk 0:01:52.5]}
12... cxd4 {[%clk 0:02:30.5]} 13. g4 {[%clk 0:01:52.6]} 13... Nh4 {[%clk
0:02:19.9]} 14. Nxd4 {[%clk 0:01:52.1]} 14... Qd5 {[%clk 0:02:01.1]} 15. f3
{[%clk 0:01:36.8]} 15... Bc5 {[%clk 0:01:58.6]} 16. Kf2 {[%clk 0:00:33.2]} 16...
f6 {[%clk 0:01:33.6]} 17. Nd3 {[%clk 0:00:31.2]} 17... Bxd4+ {[%clk 0:01:25]}
18. cxd4 {[%clk 0:00:31.1]} 18... Qxd4+ {[%clk 0:01:22.8]} 19. Be3 {[%clk
0:00:30.9]} 19... Qd6 {[%clk 0:01:13.5]} 20. Bf4 {[%clk 0:00:23]} 20... Qb6+
{[%clk 0:01:05.8]} 21. Kg3 {[%clk 0:00:22.5]} 21... Ng6 {[%clk 0:01:01.5]} 22.
Qc2 {[%clk 0:00:19.7]} 22... Nxf4 {[%clk 0:00:53.1]} 23. Nxf4 {[%clk 0:00:19.6]}
23... Bf7 {[%clk 0:00:52.8]} 24. Re7 {[%clk 0:00:19.3]} 24... c6 {[%clk
0:00:43.3]} 25. Rae1 {[%clk 0:00:18.7]} 25... Rae8 {[%clk 0:00:39.4]} 26. Rxe8
{[%clk 0:00:16.5]} 26... Rxe8 {[%clk 0:00:36.8]} 27. Rxe8+ {[%clk 0:00:16]}
27... Bxe8 {[%clk 0:00:37.7]} 28. Qe4 {[%clk 0:00:13.8]} 28... Qd8 {[%clk
0:00:27.8]} 29. a3 {[%clk 0:00:11.4]} 29... Bf7 {[%clk 0:00:26.3]} 30. h4 {[%clk
0:00:11.1]} 30... g5 {[%clk 0:00:17.2]} 31. hxg5 {[%clk 0:00:10.1]} 31... fxg5
{[%clk 0:00:18.1]} 32. Nh3 {[%clk 0:00:10.1]} 32... Qd6+ {[%clk 0:00:16.3]} 33.
Kf2 {[%clk 0:00:09.2]} 33... Qh2+ {[%clk 0:00:14.4]} 34. Ke3 {[%clk 0:00:09]}
34... Qxh3 {[%clk 0:00:14.7]} 35. Qf5 {[%clk 0:00:09.6]} 35... Qh6 {[%clk
0:00:12.9]} 36. Qc8+ {[%clk 0:00:09.3]} 36... Qf8 {[%clk 0:00:13.2]} 37. Qf5
{[%clk 0:00:09.3]} 37... h6 {[%clk 0:00:12.1]} 38. Qf6 {[%clk 0:00:09.3]} 38...
Qe8+ {[%clk 0:00:12]} 39. Kf2 {[%clk 0:00:08.7]} 39... Qe6 {[%clk 0:00:11.5]}
40. Qd8+ {[%clk 0:00:09]} 40... Kh7 {[%clk 0:00:12]} 41. Qc7 {[%clk 0:00:08.3]}
41... b5 {[%clk 0:00:08]} 42. Qxa7 {[%clk 0:00:07.8]} 42... Kg7 {[%clk
0:00:08.3]} 43. Qd4+ {[%clk 0:00:07.6]} 43... Qf6 {[%clk 0:00:08.6]} 44. Qd7
{[%clk 0:00:07.6]} 44... Qxb2+ {[%clk 0:00:08.6]} 45. Kg3 {[%clk 0:00:08.1]}
45... Qxa3 {[%clk 0:00:08.5]} 46. Qxc6 {[%clk 0:00:08]} 46... Qd3 {[%clk
0:00:06.9]} 47. Qc5 {[%clk 0:00:07.5]} 47... Qd5 {[%clk 0:00:07.2]} 48. Qc3+
{[%clk 0:00:06.8]} 48... Kh7 {[%clk 0:00:07]} 49. Qc2+ {[%clk 0:00:07.1]} 49...
Bg6 {[%clk 0:00:06.7]} 50. Qc7+ {[%clk 0:00:07.4]} 50... Qf7 {[%clk 0:00:07.3]}
51. Qb6 {[%clk 0:00:07.9]} 51... Qf4+ {[%clk 0:00:07.7]} 52. Kg2 {[%clk
0:00:07.8]} 52... Qd2+ {[%clk 0:00:07.9]} 53. Kg3 {[%clk 0:00:08.4]} 53... Qf4+
{[%clk 0:00:08]} 54. Kg2 {[%clk 0:00:08.9]} 54... Qe5 {[%clk 0:00:08.6]} 55.
Qb7+ {[%clk 0:00:08.5]} 55... Kg8 {[%clk 0:00:09.1]} 56. Qc8+ {[%clk 0:00:08.4]}
56... Kg7 {[%clk 0:00:09.2]} 57. Qd7+ {[%clk 0:00:08.2]} 57... Bf7 {[%clk
0:00:09.9]} 58. Kf2 {[%clk 0:00:07.4]} 58... Qb2+ {[%clk 0:00:10]} 59. Kg3
{[%clk 0:00:07.4]} 59... b4 {[%clk 0:00:10.7]} 60. f4 {[%clk 0:00:06.4]} 60...
gxf4+ {[%clk 0:00:10.8]} 61. Kxf4 {[%clk 0:00:07]} 61... b3 {[%clk 0:00:11.4]}
62. g5 {[%clk 0:00:07.5]} 62... hxg5+ {[%clk 0:00:11.3]} 63. Kxg5 {[%clk
0:00:08.2]} 63... Qf6+ {[%clk 0:00:11.7]} 64. Kg4 {[%clk 0:00:06.6]} 64... Qe6+
{[%clk 0:00:11.8]} 65. Qxe6 {[%clk 0:00:06.5]} 65... Bxe6+ {[%clk 0:00:12.7]}
0-1

[Event "Early-Titled-Tuesday-Blitz-September-26-2023"]
[Site "Chess.com"]
[Date "2023.09.26"]
[Round "5"]
[White "Roedor"]
[Black "Bodhanas"]
[Result "0-1"]
[WhiteElo "2342"]
[BlackElo "2056"]
[TimeControl "180+1"]
[EndTime "8:59:23 PDT"]
[Termination "Bodhanas won by resignation"]

1. d4 {[%clk 0:02:54.1]} 1... d6 {[%clk 0:02:52.6]} 2. Nf3 {[%clk 0:02:52.6]}
2... Nf6 {[%clk 0:02:50.5]} 3. c4 {[%clk 0:02:49.4]} 3... g6 {[%clk 0:02:49.1]}
4. Nc3 {[%clk 0:02:49.4]} 4... Bg7 {[%clk 0:02:48.4]} 5. g3 {[%clk 0:02:47.5]}
5... O-O {[%clk 0:02:42.9]} 6. Bg2 {[%clk 0:02:46.2]} 6... Nbd7 {[%clk
0:02:33.5]} 7. O-O {[%clk 0:02:45.4]} 7... c6 {[%clk 0:02:32.9]} 8. e4 {[%clk
0:02:44.1]} 8... e5 {[%clk 0:02:29.3]} 9. h3 {[%clk 0:02:43.7]} 9... Re8 {[%clk
0:02:20.8]} 10. Be3 {[%clk 0:02:41.3]} 10... b6 {[%clk 0:02:18.1]} 11. d5 {[%clk
0:02:39.2]} 11... cxd5 {[%clk 0:02:15.4]} 12. cxd5 {[%clk 0:02:35.7]} 12... Ba6
{[%clk 0:02:11.2]} 13. Re1 {[%clk 0:02:35.3]} 13... Nc5 {[%clk 0:02:01.7]} 14.
Bxc5 {[%clk 0:02:18.3]} 14... bxc5 {[%clk 0:01:59.8]} 15. Qa4 {[%clk 0:02:09.6]}
15... Qb6 {[%clk 0:01:52.4]} 16. b3 {[%clk 0:02:00.8]} 16... Rac8 {[%clk
0:01:46.4]} 17. Nd2 {[%clk 0:01:57.9]} 17... Bh6 {[%clk 0:01:32.3]} 18. Nc4
{[%clk 0:01:52.1]} 18... Bxc4 {[%clk 0:01:31.2]} 19. Qxc4 {[%clk 0:01:53]} 19...
Bd2 {[%clk 0:01:18.7]} 20. Red1 {[%clk 0:01:46.9]} 20... Bxc3 {[%clk 0:01:18.2]}
21. Qxc3 {[%clk 0:01:46]} 21... Qb4 {[%clk 0:01:18.2]} 22. Rac1 {[%clk
0:01:34.8]} 22... Qxc3 {[%clk 0:01:16.7]} 23. Rxc3 {[%clk 0:01:35.7]} 23... Rb8
{[%clk 0:01:16.4]} 24. Rc4 {[%clk 0:01:25.4]} 24... Rb6 {[%clk 0:01:09]} 25. Ra4
{[%clk 0:01:24.1]} 25... Re7 {[%clk 0:01:07.4]} 26. Rc1 {[%clk 0:01:17.4]} 26...
Reb7 {[%clk 0:01:04.5]} 27. f3 {[%clk 0:01:04.2]} 27... Rb4 {[%clk 0:00:58.1]}
28. Ra6 {[%clk 0:00:49.8]} 28... R4b6 {[%clk 0:00:55.8]} 29. Ra3 {[%clk
0:00:38.5]} 29... Kf8 {[%clk 0:00:47.5]} 30. Kf2 {[%clk 0:00:33.3]} 30... Ke7
{[%clk 0:00:42.3]} 31. h4 {[%clk 0:00:28.6]} 31... Rb4 {[%clk 0:00:33.8]} 32.
Bf1 {[%clk 0:00:19.7]} 32... Rd4 {[%clk 0:00:31.4]} 33. Rc2 {[%clk 0:00:18.3]}
33... h6 {[%clk 0:00:26.5]} 34. Ra6 {[%clk 0:00:16.7]} 34... g5 {[%clk
0:00:24.6]} 35. hxg5 {[%clk 0:00:15.9]} 35... hxg5 {[%clk 0:00:24.7]} 36. g4
{[%clk 0:00:16.5]} 36... Rd1 {[%clk 0:00:20.6]} 37. Bc4 {[%clk 0:00:08.5]} 37...
Rh1 {[%clk 0:00:18.5]} 38. Ke3 {[%clk 0:00:07.2]} 38... Nd7 {[%clk 0:00:16.4]}
39. a4 {[%clk 0:00:04.8]} 39... Nb6 {[%clk 0:00:16.3]} 40. Bb5 {[%clk
0:00:01.8]} 40... Rb1 {[%clk 0:00:13.9]} 41. Bc6 {[%clk 0:00:02]} 41... Rxb3+
{[%clk 0:00:13]} 42. Kd2 {[%clk 0:00:02.7]} 42... Rc7 {[%clk 0:00:12.9]} 43. Kc1
{[%clk 0:00:02.5]} 43... Rb4 {[%clk 0:00:13.3]} 44. Rh2 {[%clk 0:00:02.5]} 44...
Rb3 {[%clk 0:00:12.1]} 45. Rh5 {[%clk 0:00:02.6]} 45... Rxf3 {[%clk 0:00:09.6]}
46. Rxg5 {[%clk 0:00:02.8]} 46... Rf4 {[%clk 0:00:10]} 47. Rg8 {[%clk 0:00:03]}
47... Rxe4 {[%clk 0:00:09.4]} 48. g5 {[%clk 0:00:03.7]} 48... Nd7 {[%clk
0:00:07.5]} 49. a5 {[%clk 0:00:02.5]} 49... Rg4 {[%clk 0:00:06.1]} 50. Kd2
{[%clk 0:00:02.2]} 50... c4 {[%clk 0:00:05.5]} 51. Kc3 {[%clk 0:00:02.5]} 51...
e4 {[%clk 0:00:04.5]} 52. g6 {[%clk 0:00:02.5]} 52... Rxg6 {[%clk 0:00:03.7]}
53. Rxg6 {[%clk 0:00:02.8]} 53... fxg6 {[%clk 0:00:04.4]} 54. Kxc4 {[%clk
0:00:03.7]} 54... Ne5+ {[%clk 0:00:04.8]} 55. Kd4 {[%clk 0:00:03.5]} 55... Nxc6+
{[%clk 0:00:05.6]} 56. dxc6 {[%clk 0:00:04]} 56... Ke6 {[%clk 0:00:06.3]} 57.
Kxe4 {[%clk 0:00:04.5]} 57... d5+ {[%clk 0:00:07]} 58. Kd4 {[%clk 0:00:04.7]}
58... Kd6 {[%clk 0:00:07.7]} 59. Kd3 {[%clk 0:00:03.1]} 59... g5 {[%clk
0:00:08.1]} 60. Kd4 {[%clk 0:00:03.2]} 60... g4 {[%clk 0:00:08.3]} 61. Ke3
{[%clk 0:00:03.8]} 61... Kc5 {[%clk 0:00:08.7]} 62. Kf4 {[%clk 0:00:04.2]} 62...
Kb5 {[%clk 0:00:09]} 63. Rb6+ {[%clk 0:00:04.4]} 63... axb6 {[%clk 0:00:08.1]}
64. axb6 {[%clk 0:00:05.3]} 64... Kxb6 {[%clk 0:00:08.5]} 65. Kxg4 {[%clk
0:00:06.2]} 65... Kxc6 {[%clk 0:00:09]} 0-1

[Event "Early-Titled-Tuesday-Blitz-September-26-2023"]
[Site "Chess.com"]
[Date "2023.09.26"]
[Round "5"]
[White "amanmuhammethommadov"]
[Black "ARMQUEEN"]
[Result "0-1"]
[WhiteElo "2589"]
[BlackElo "2444"]
[TimeControl "180+1"]
[EndTime "8:59:24 PDT"]
[Termination "ARMQUEEN won by resignation"]

1. e4 {[%clk 0:03:00.9]} 1... c5 {[%clk 0:02:58.2]} 2. Nf3 {[%clk 0:03:00.6]}
2... Nc6 {[%clk 0:02:55.4]} 3. Bb5 {[%clk 0:02:59.9]} 3... g5 {[%clk 0:02:54.1]}
4. Nxg5 {[%clk 0:02:53.8]} 4... Nd4 {[%clk 0:02:53.1]} 5. Bc4 {[%clk 0:02:53.1]}
5... e6 {[%clk 0:02:52.3]} 6. Nf3 {[%clk 0:02:51.4]} 6... b5 {[%clk 0:02:46.9]}
7. Be2 {[%clk 0:02:44.3]} 7... Nxe2 {[%clk 0:02:36.7]} 8. Qxe2 {[%clk
0:02:43.9]} 8... a6 {[%clk 0:02:37.3]} 9. d3 {[%clk 0:02:43.7]} 9... Bb7 {[%clk
0:02:37.4]} 10. Nc3 {[%clk 0:02:43.9]} 10... Qc7 {[%clk 0:02:34]} 11. a4 {[%clk
0:02:41.5]} 11... b4 {[%clk 0:02:33.2]} 12. Nd1 {[%clk 0:02:41.5]} 12... Ne7
{[%clk 0:02:31.6]} 13. Ne3 {[%clk 0:02:40.5]} 13... d5 {[%clk 0:02:29.9]} 14.
exd5 {[%clk 0:02:38.9]} 14... Nxd5 {[%clk 0:02:22]} 15. Nxd5 {[%clk 0:02:38.5]}
15... Bxd5 {[%clk 0:02:18.8]} 16. Bd2 {[%clk 0:02:12.2]} 16... Rg8 {[%clk
0:02:16.5]} 17. Rg1 {[%clk 0:02:03.4]} 17... O-O-O {[%clk 0:02:12.2]} 18. O-O-O
{[%clk 0:01:56.3]} 18... Qc6 {[%clk 0:02:07.8]} 19. b3 {[%clk 0:01:52.5]} 19...
Bg7 {[%clk 0:01:58.9]} 20. Kb1 {[%clk 0:01:40.1]} 20... Bf6 {[%clk 0:01:57.1]}
21. Bc1 {[%clk 0:01:37]} 21... Rxg2 {[%clk 0:01:55.9]} 22. Nd2 {[%clk
0:01:25.5]} 22... Rxh2 {[%clk 0:01:43.9]} 23. Ne4 {[%clk 0:01:19.6]} 23... Bd4
{[%clk 0:01:40.2]} 24. Bf4 {[%clk 0:01:11.2]} 24... Bxe4 {[%clk 0:01:34.3]} 25.
Bxh2 {[%clk 0:00:53.1]} 25... Bg6 {[%clk 0:01:33.9]} 26. Be5 {[%clk 0:00:42.5]}
26... Qd5 {[%clk 0:01:29.1]} 27. Bxd4 {[%clk 0:00:39.2]} 27... Bh5 {[%clk
0:01:28.3]} 28. Qd2 {[%clk 0:00:18.7]} 28... Bxd1 {[%clk 0:01:26.9]} 29. Bf6
{[%clk 0:00:19.4]} 29... Bxc2+ {[%clk 0:01:21.2]} 30. Qxc2 {[%clk 0:00:18.8]}
30... Rd7 {[%clk 0:01:21.2]} 31. Rc1 {[%clk 0:00:18.6]} 31... Rc7 {[%clk
0:01:21]} 32. Bb2 {[%clk 0:00:17.2]} 32... h5 {[%clk 0:01:19.6]} 33. Qe2 {[%clk
0:00:15.9]} 33... f5 {[%clk 0:01:14.8]} 34. Re1 {[%clk 0:00:12.1]} 34... Rc6
{[%clk 0:01:13.7]} 35. Kc2 {[%clk 0:00:11.3]} 35... h4 {[%clk 0:01:11.9]} 36.
Rg1 {[%clk 0:00:09.6]} 36... h3 {[%clk 0:01:09.4]} 37. Rg8+ {[%clk 0:00:09.9]}
37... Kb7 {[%clk 0:01:09.3]} 38. Rh8 {[%clk 0:00:10.8]} 38... Qg2 {[%clk
0:01:05.8]} 39. Rh7+ {[%clk 0:00:11]} 39... Rc7 {[%clk 0:01:02.1]} 40. Rxc7+
{[%clk 0:00:10]} 40... Kxc7 {[%clk 0:01:01.9]} 41. Qe5+ {[%clk 0:00:08.7]} 41...
Kd7 {[%clk 0:01:00.5]} 42. Qxc5 {[%clk 0:00:05.9]} 42... h2 {[%clk 0:00:59.3]}
43. Qa7+ {[%clk 0:00:06.3]} 43... Kd6 {[%clk 0:00:56.3]} 44. Qd4+ {[%clk
0:00:04.9]} 44... Kc7 {[%clk 0:00:49.7]} 45. Qc5+ {[%clk 0:00:05]} 45... Kd7
{[%clk 0:00:43.1]} 46. Qa7+ {[%clk 0:00:04.8]} 46... Ke8 {[%clk 0:00:42.7]} 47.
Bf6 {[%clk 0:00:04.2]} 47... Qc6+ {[%clk 0:00:38.2]} 48. Kb2 {[%clk 0:00:03.6]}
48... Qd6 {[%clk 0:00:31.7]} 49. Qa8+ {[%clk 0:00:01.7]} 49... Kf7 {[%clk
0:00:31.4]} 50. Qh8 {[%clk 0:00:01.1]} 50... h1=Q {[%clk 0:00:27.2]} 51. Qxh1
{[%clk 0:00:01.8]} 51... Kxf6 {[%clk 0:00:27.3]} 52. Qh8+ {[%clk 0:00:02.7]}
52... Ke7 {[%clk 0:00:24.2]} 53. Qg7+ {[%clk 0:00:03.2]} 53... Kd8 {[%clk
0:00:24.2]} 54. Qg8+ {[%clk 0:00:04]} 54... Kc7 {[%clk 0:00:24.2]} 55. Qg7+
{[%clk 0:00:04.4]} 55... Kb6 {[%clk 0:00:24.3]} 56. Qg3 {[%clk 0:00:04.5]} 56...
Qxg3 {[%clk 0:00:20.6]} 57. fxg3 {[%clk 0:00:05.4]} 57... Kc5 {[%clk 0:00:20.3]}
58. Kc2 {[%clk 0:00:06]} 58... Kd4 {[%clk 0:00:20.5]} 59. Kd2 {[%clk 0:00:06.7]}
59... a5 {[%clk 0:00:19.2]} 60. Ke2 {[%clk 0:00:04]} 60... Kc3 {[%clk
0:00:19.2]} 61. Ke3 {[%clk 0:00:04.6]} 61... Kxb3 {[%clk 0:00:19.5]} 62. g4
{[%clk 0:00:04.1]} 62... fxg4 {[%clk 0:00:19.1]} 63. Kf4 {[%clk 0:00:05]} 63...
Kc3 {[%clk 0:00:19.1]} 64. Kxg4 {[%clk 0:00:05.6]} 64... b3 {[%clk 0:00:19.8]}
0-1

[Event "Early-Titled-Tuesday-Blitz-September-26-2023"]
[Site "Chess.com"]
[Date "2023.09.26"]
[Round "5"]
[White "Squirlolz"]
[Black "Fy_Rakotomaharo"]
[Result "1-0"]
[WhiteElo "2542"]
[BlackElo "2703"]
[TimeControl "180+1"]
[EndTime "8:59:33 PDT"]
[Termination "Squirlolz won by resignation"]

1. e4 {[%clk 0:03:00.9]} 1... e5 {[%clk 0:02:59.9]} 2. Nf3 {[%clk 0:03:00.9]}
2... Nf6 {[%clk 0:03:00.7]} 3. Nxe5 {[%clk 0:02:56.8]} 3... d6 {[%clk
0:03:01.2]} 4. Nf3 {[%clk 0:02:57.1]} 4... Nxe4 {[%clk 0:03:01.6]} 5. d3 {[%clk
0:02:57.9]} 5... Nf6 {[%clk 0:03:01.5]} 6. d4 {[%clk 0:02:58.7]} 6... g6 {[%clk
0:02:59.6]} 7. Bd3 {[%clk 0:02:56.4]} 7... Bg7 {[%clk 0:02:59.8]} 8. Qe2+ {[%clk
0:02:55.3]} 8... Qe7 {[%clk 0:02:58.9]} 9. Be3 {[%clk 0:02:50.5]} 9... Nc6
{[%clk 0:02:55.6]} 10. c3 {[%clk 0:02:47.2]} 10... Ng4 {[%clk 0:02:42.1]} 11.
Bg5 {[%clk 0:02:41.2]} 11... Qxe2+ {[%clk 0:02:41]} 12. Kxe2 {[%clk 0:02:41.8]}
12... O-O {[%clk 0:02:40.6]} 13. Re1 {[%clk 0:02:40.5]} 13... h6 {[%clk
0:02:33.4]} 14. Bf4 {[%clk 0:02:37.9]} 14... g5 {[%clk 0:02:29.1]} 15. Bd2
{[%clk 0:02:36.1]} 15... Bd7 {[%clk 0:02:19]} 16. Na3 {[%clk 0:02:35.8]} 16...
a6 {[%clk 0:02:14.8]} 17. Nc2 {[%clk 0:02:28.1]} 17... f5 {[%clk 0:02:13.4]} 18.
Kf1 {[%clk 0:02:13.8]} 18... Nf6 {[%clk 0:02:10.7]} 19. Ne3 {[%clk 0:02:10.5]}
19... Ne4 {[%clk 0:01:56.1]} 20. Re2 {[%clk 0:02:01.7]} 20... Nxd2+ {[%clk
0:01:32.6]} 21. Nxd2 {[%clk 0:01:59.5]} 21... Ne7 {[%clk 0:01:20.8]} 22. Rae1
{[%clk 0:01:44.7]} 22... b5 {[%clk 0:01:07.5]} 23. Bc2 {[%clk 0:01:35.6]} 23...
f4 {[%clk 0:00:34.1]} 24. Bb3+ {[%clk 0:01:31.7]} 24... Kh8 {[%clk 0:00:34.2]}
25. Nd5 {[%clk 0:01:31.9]} 25... Nxd5 {[%clk 0:00:34.4]} 26. Bxd5 {[%clk
0:01:32.8]} 26... Rae8 {[%clk 0:00:30.9]} 27. Re7 {[%clk 0:01:22.6]} 27... Rxe7
{[%clk 0:00:30.9]} 28. Rxe7 {[%clk 0:01:22.1]} 28... Rd8 {[%clk 0:00:31.3]} 29.
Be6 {[%clk 0:01:12.7]} 29... Bxe6 {[%clk 0:00:28.4]} 30. Rxe6 {[%clk 0:01:13.6]}
30... c5 {[%clk 0:00:24.8]} 31. d5 {[%clk 0:01:10.9]} 31... Kh7 {[%clk
0:00:20.5]} 32. Ne4 {[%clk 0:01:09.5]} 32... Be5 {[%clk 0:00:20.8]} 33. Ke2
{[%clk 0:01:02.4]} 33... Kg7 {[%clk 0:00:19.6]} 34. g4 {[%clk 0:00:59.9]} 34...
fxg3 {[%clk 0:00:19.4]} 35. hxg3 {[%clk 0:00:58.6]} 35... c4 {[%clk 0:00:19.6]}
36. g4 {[%clk 0:00:58.1]} 36... Rd7 {[%clk 0:00:16]} 37. f3 {[%clk 0:00:47.6]}
37... a5 {[%clk 0:00:15.5]} 38. Re8 {[%clk 0:00:46.9]} 38... b4 {[%clk
0:00:13.8]} 39. Ra8 {[%clk 0:00:38.8]} 39... bxc3 {[%clk 0:00:14]} 40. bxc3
{[%clk 0:00:37.1]} 40... Rb7 {[%clk 0:00:07.7]} 41. Rxa5 {[%clk 0:00:36.7]}
41... Rb2+ {[%clk 0:00:07.9]} 42. Ke3 {[%clk 0:00:37.2]} 42... Rc2 {[%clk
0:00:08.1]} 43. Ra7+ {[%clk 0:00:21.9]} 43... Kg6 {[%clk 0:00:07.9]} 44. Rc7
{[%clk 0:00:22.2]} 44... Bf4+ {[%clk 0:00:08]} 45. Kd4 {[%clk 0:00:20.1]} 45...
Rxa2 {[%clk 0:00:06.5]} 46. Rxc4 {[%clk 0:00:17.4]} 46... h5 {[%clk 0:00:06.7]}
47. gxh5+ {[%clk 0:00:17.1]} 47... Kxh5 {[%clk 0:00:07.6]} 48. Rc6 {[%clk
0:00:17.6]} 48... Be5+ {[%clk 0:00:05.6]} 49. Kd3 {[%clk 0:00:15.8]} 49... Ra1
{[%clk 0:00:02.2]} 50. Nxd6 {[%clk 0:00:14.5]} 50... Kh4 {[%clk 0:00:02.8]} 51.
Ne4 {[%clk 0:00:11.6]} 51... Kh3 {[%clk 0:00:02.8]} 52. Rg6 {[%clk 0:00:09.6]}
52... Kg2 {[%clk 0:00:02.6]} 53. Nxg5 {[%clk 0:00:09.9]} 53... Kf1 {[%clk
0:00:01.9]} 54. Ne4 {[%clk 0:00:09.9]} 54... Bf4 {[%clk 0:00:01.9]} 55. d6
{[%clk 0:00:10]} 55... Rd1+ {[%clk 0:00:02]} 56. Kc4 {[%clk 0:00:10.2]} 56...
Ke2 {[%clk 0:00:01.4]} 57. Re6 {[%clk 0:00:10.2]} 57... Kxf3 {[%clk 0:00:01.7]}
58. Kc5 {[%clk 0:00:07.7]} 58... Kg4 {[%clk 0:00:02.1]} 59. c4 {[%clk 0:00:08]}
59... Kf5 {[%clk 0:00:02.6]} 60. Re8 {[%clk 0:00:08.3]} 60... Rd3 {[%clk
0:00:01.4]} 61. Kc6 {[%clk 0:00:08.4]} 61... Kg4 {[%clk 0:00:01.9]} 62. c5
{[%clk 0:00:08.7]} 62... Kf3 {[%clk 0:00:02.4]} 63. d7 {[%clk 0:00:09]} 63...
Rd1 {[%clk 0:00:02.3]} 64. Nd6 {[%clk 0:00:09.4]} 64... Bxd6 {[%clk 0:00:01.8]}
65. cxd6 {[%clk 0:00:09.8]} 65... Rc1+ {[%clk 0:00:02.7]} 66. Kd5 {[%clk
0:00:09.7]} 66... Rd1+ {[%clk 0:00:03.2]} 67. Ke6 {[%clk 0:00:10.3]} 67... Re1+
{[%clk 0:00:03.5]} 68. Kf7 {[%clk 0:00:10.8]} 68... Rh1 {[%clk 0:00:04.4]} 69.
d8=Q {[%clk 0:00:10.5]} 69... Rh7+ {[%clk 0:00:05.3]} 70. Ke6 {[%clk 0:00:10.9]}
70... Rh2 {[%clk 0:00:06.2]} 71. Qf6+ {[%clk 0:00:11.2]} 71... Kg2 {[%clk
0:00:06.6]} 72. Qb2+ {[%clk 0:00:11]} 72... Kh1 {[%clk 0:00:07.5]} 73. Qxh2+
{[%clk 0:00:11.8]} 73... Kxh2 {[%clk 0:00:07.5]} 74. Rg8 {[%clk 0:00:12.7]} 1-0

[Event "Early-Titled-Tuesday-Blitz-September-26-2023"]
[Site "Chess.com"]
[Date "2023.09.26"]
[Round "5"]
[White "SAInt_666"]
[Black "LionTheLeon_06"]
[Result "1/2-1/2"]
[WhiteElo "2669"]
[BlackElo "2825"]
[TimeControl "180+1"]
[EndTime "8:59:37 PDT"]
[Termination "Game drawn by repetition"]

1. e4 {[%clk 0:03:00.9]} 1... c6 {[%clk 0:03:00.3]} 2. d4 {[%clk 0:03:00.8]}
2... d5 {[%clk 0:03:01.2]} 3. exd5 {[%clk 0:03:00.5]} 3... cxd5 {[%clk
0:03:01.5]} 4. Bd3 {[%clk 0:03:01.2]} 4... Nf6 {[%clk 0:03:02]} 5. h3 {[%clk
0:03:00.5]} 5... Nc6 {[%clk 0:03:01.7]} 6. c3 {[%clk 0:03:01]} 6... g6 {[%clk
0:03:01.8]} 7. Nf3 {[%clk 0:02:59.4]} 7... Bf5 {[%clk 0:03:00.9]} 8. Be2 {[%clk
0:03:00]} 8... Bg7 {[%clk 0:03:00]} 9. O-O {[%clk 0:03:00.6]} 9... O-O {[%clk
0:03:00.3]} 10. Bf4 {[%clk 0:03:01.2]} 10... Ne4 {[%clk 0:02:58.1]} 11. Nbd2
{[%clk 0:03:01.2]} 11... Qb6 {[%clk 0:02:51.9]} 12. Qb3 {[%clk 0:02:59.1]} 12...
Qxb3 {[%clk 0:01:34.5]} 13. axb3 {[%clk 0:02:58.9]} 13... a5 {[%clk 0:01:34.7]}
14. g4 {[%clk 0:02:35.2]} 14... Nxd2 {[%clk 0:01:31.7]} 15. Nxd2 {[%clk
0:02:36.1]} 15... Bd7 {[%clk 0:01:29.9]} 16. Bf3 {[%clk 0:02:28.8]} 16... e6
{[%clk 0:01:26.7]} 17. Bg3 {[%clk 0:02:20.9]} 17... Rac8 {[%clk 0:01:26.1]} 18.
Rfe1 {[%clk 0:02:17.7]} 18... Rfe8 {[%clk 0:01:25.5]} 19. Be2 {[%clk 0:02:11.1]}
19... f6 {[%clk 0:01:24.6]} 20. f4 {[%clk 0:02:02.5]} 20... b6 {[%clk
0:01:15.5]} 21. Nf3 {[%clk 0:02:00.1]} 21... h6 {[%clk 0:01:03.9]} 22. Bd3
{[%clk 0:01:59.6]} 22... Kf7 {[%clk 0:01:01.2]} 23. Re2 {[%clk 0:01:45.2]} 23...
Ne7 {[%clk 0:01:01.2]} 24. Rae1 {[%clk 0:01:41.4]} 24... b5 {[%clk 0:00:54.9]}
25. Ra1 {[%clk 0:01:38.6]} 25... a4 {[%clk 0:00:55.3]} 26. b4 {[%clk 0:01:38.3]}
26... Rg8 {[%clk 0:00:48.2]} 27. Nd2 {[%clk 0:01:34.6]} 27... Ra8 {[%clk
0:00:28.8]} 28. Nb1 {[%clk 0:01:33.8]} 28... Ra7 {[%clk 0:00:29.3]} 29. Na3
{[%clk 0:01:33.9]} 29... Rb7 {[%clk 0:00:30]} 30. Rae1 {[%clk 0:01:18.4]} 30...
Bf8 {[%clk 0:00:30.3]} 31. Kf2 {[%clk 0:01:15.6]} 31... Nc8 {[%clk 0:00:30.5]}
32. h4 {[%clk 0:00:59]} 32... h5 {[%clk 0:00:20.3]} 33. g5 {[%clk 0:00:50.9]}
33... Nd6 {[%clk 0:00:15.5]} 34. Rg1 {[%clk 0:00:31.5]} 34... Be7 {[%clk
0:00:15.3]} 35. Ke1 {[%clk 0:00:30.8]} 35... Bd8 {[%clk 0:00:14.6]} 36. Bh2
{[%clk 0:00:26.5]} 36... f5 {[%clk 0:00:09.6]} 37. Bg3 {[%clk 0:00:25.7]} 37...
Bc7 {[%clk 0:00:09.6]} 38. Kd2 {[%clk 0:00:25.8]} 38... Bb8 {[%clk 0:00:09.9]}
39. Rge1 {[%clk 0:00:25.5]} 39... Re8 {[%clk 0:00:10]} 40. Kc1 {[%clk
0:00:25.6]} 40... Re7 {[%clk 0:00:09.4]} 41. Kd2 {[%clk 0:00:24.8]} 41... Kf8
{[%clk 0:00:09.8]} 42. Ke3 {[%clk 0:00:25.2]} 42... Rf7 {[%clk 0:00:10.2]} 43.
Kf3 {[%clk 0:00:25.7]} 43... Bc7 {[%clk 0:00:10.6]} 44. Bf2 {[%clk 0:00:17.4]}
44... Ne4 {[%clk 0:00:08.6]} 45. Bxe4 {[%clk 0:00:17.7]} 45... fxe4+ {[%clk
0:00:08.8]} 46. Kg2 {[%clk 0:00:17.1]} 46... Bxf4 {[%clk 0:00:07.4]} 47. Rf1
{[%clk 0:00:15.7]} 47... Ke7 {[%clk 0:00:06.3]} 48. Bg3 {[%clk 0:00:15.1]} 48...
Bxg3 {[%clk 0:00:06.3]} 49. Rxf7+ {[%clk 0:00:16]} 49... Kxf7 {[%clk 0:00:06]}
50. Kxg3 {[%clk 0:00:16.9]} 50... Kg7 {[%clk 0:00:04.9]} 51. Rf2 {[%clk
0:00:17.1]} 51... Rb8 {[%clk 0:00:04.6]} 52. Rf6 {[%clk 0:00:14.1]} 52... Rd8
{[%clk 0:00:03.2]} 53. Kf4 {[%clk 0:00:13.3]} 53... Rb8 {[%clk 0:00:03]} 54. Nc2
{[%clk 0:00:13.5]} 54... Rb6 {[%clk 0:00:03.1]} 55. Ke5 {[%clk 0:00:13.7]} 55...
Rc6 {[%clk 0:00:03.4]} 56. Rf1 {[%clk 0:00:12.5]} 56... Be8 {[%clk 0:00:02.8]}
57. Rf6 {[%clk 0:00:11.4]} 57... Bd7 {[%clk 0:00:03.2]} 58. Rf1 {[%clk
0:00:11.8]} 58... Be8 {[%clk 0:00:03.5]} 59. Rf2 {[%clk 0:00:11]} 59... Bd7
{[%clk 0:00:03.9]} 60. Rf6 {[%clk 0:00:10]} 60... Bc8 {[%clk 0:00:04.3]} 61. Rf1
{[%clk 0:00:08.4]} 61... Bd7 {[%clk 0:00:04.6]} 62. Rf2 {[%clk 0:00:08.7]} 62...
Be8 {[%clk 0:00:04.9]} 63. Rf6 {[%clk 0:00:08.7]} 63... Bd7 {[%clk 0:00:05.4]}
1/2-1/2